Workbook

Sheet Introduction and Method
B1: Department of Health & Social Care
B2: Interactive tool for calculating the Slope Index
B3: of Inequality (SII) and Relative Index of Inequality (RII) | I3: Dec 25
B7: Introduction
B8: The Slope Index of Inequality (SII) and Relative Index of Inequality (RII) are summary measures of inequality in health outcomes by deprivation. The SII and RII are measures of how much an indicator varies with deprivation. They takes account of variation across the whole range of deprivation within a population and summarise this in a single number representing the range in indicator values across the social gradient from most to least deprived. This workbook provides an interactive tool to facilitate calculation of the SII and RII.
B10: Method
B11: This section sets out essential information on the SII/RII calculation method. The method of calculating and interpreting the SII and RII is set out comprehensively in the Public Health Technical Guidance book and this should be referred to for full details of the method.
B12: https://fingertips.phe.org.uk/static-reports/public-health-technical-guidance/inequality/SII.html
B13: The SII is calculated using a linear regression formula which takes into account the indicator values for each deprivation decile, and the population denominator for each deprivation decile. Figure 1 provides an example of the calculation of the slope index of inequality where there is a linear relationship between the indicator and deprivation. The chart shows indicator values for 10 deprivation deciles. These have been plotted to take account of their population size. The orange line on the chart is a linear regression line of best fit for the data, calculated by the ordinary least squares method. The SII is the gradient of the regression line. Since the x axis is plotted on a scale from 0 to 1, the SII is also equal to the difference between the top of the line (at x=1 on the horizontal axis) and the bottom (at x=0 on the horizontal axis). The RII is is the proportional difference between the top of the line and the bottom of the line. Transformation The standard approach for calculating the SII and RII described above has the assumption that there is a linear relationship between the indicator and deprivation. In health indicators, this is not always the case, and the relationship is not linear. In these cases, it is possible to log or logit transform the data prior to calculation to improve linearity of the data prior to calculation of the SII/RII. OHID’s approach is that all indicators, except for life expectancy and healthy life expectancy, are log or logit transformed prior to calculation of the SII/RII to account for the non-linearity. In this tool, the user can opt to transform data for an indicator or not. If transformation is selected, a log transformation is used for rate indicators and logit transformation is used for proportions. Data are transformed back to the original units of the indicator for presentation. Confidence intervals Confidence intervals for the SII and RII are calculated using a simulation approach. Simulation is a method used to estimate the degree of uncertainty for measures where the statistical distributions underpinning the measure are too complex to analyse mathematically. For each decile value, the confidence intervals give information about the degree of uncertainty around each of the indicator values: essentially it describes a statistical distribution for each decile. Using a random number generating algorithm, a random value is taken from each decile indicator value distribution and the SII recalculated. This is repeated many times to build up a distribution of SII values based on random sampling from the decile indicator value distributions. These distributions are then used to provide values for the confidence intervals around the SII and RII. The tool allows the user to choose the number of repetitions that are used in the calculation, although at least 100,000 is recommended.
B14: Figure 1: An example SII chart Slope index of inequality = 6.9 Relative index of inequality = 1.1
B15: Transformation The standard approach for calculating the SII and RII described above has the assumption that there is a linear relationship between the indicator and deprivation. In health indicators, this is not always the case, and the relationship is not linear. In these cases, it is possible to log or logit transform the data prior to calculation to improve linearity of the data prior to calculation of the SII/RII. OHID’s approach is that rates are log-transformed and proportions logit-transformed prior to calculation of the SII/RII to account for the assumption of non-linearity with these statistics. In this tool, the user can opt to transform data for an indicator or not. If transformation is selected, a log transformation is used for rate indicators and logit transformation is used for proportions. Data are transformed back to the original units of the indicator for presentation. Confidence intervals Confidence intervals for the SII and RII are calculated using a simulation approach. Simulation is a method used to estimate the degree of uncertainty for measures where the statistical distributions underpinning the measure are too complex to analyse mathematically. For each decile value, the confidence intervals give information about the degree of uncertainty around each of the indicator values: essentially it describes a statistical distribution for each decile. Using a random number generating algorithm, a random value is taken from each decile indicator value distribution and the SII recalculated. This is repeated many times to build up a distribution of SII values based on random sampling from the decile indicator value distributions. These distributions are then used to provide values for the confidence intervals around the SII and RII. The tool allows the user to choose the number of repetitions that are used in the calculation, although at least 100,000 is recommended.
B17: Interpretation of results
B18: The SII is presented in the same units of the indicator values, and represents the hypothetical absolute difference between the extremes of deprivation within the area as a whole. The RII is presented with no units, and represents the hypothetical relative difference between the extremes of deprivation within an area.
B20: Using this tool
B21: Use the 'Interactive Tool' tab to enter data and view SII and RII figures. Guidance on the data required and how to enter it in the tool is provided on the right hand side of the page. A chart to visualise the results can be viewed on the 'Chart' tab. The tool allows calculation and visualisation of a single SII and RII at a time. The time taken to calculate results will be longer the higher the number of repetitions selected to be used in the calculation. If 1,000,000 repetitions is selected, it can take several minutes to return results. Because of the limitations of Excel, it is recommended that R is used if SII/RII figures are required for multiple time periods, geographies or indicators. A function has been included in the PHEindicatormethods R package linked to below which can be used for this, and offers additional flexibility to this Excel calculator.
B23: Additional resources
B24: More detailed guidance on the calculation and use of the slope index of inequality and relative index of inequality can be found at the link below:
B25: https://fingertips.phe.org.uk/static-reports/public-health-technical-guidance/inequality/SII.html
B26: The PHEindicatormethods R package includes the function phe_sii(), which can be used to calculate the SII and can be installed from the link below:
B27: https://github.com/ukhsa-collaboration/PHEindicatormethods

Sheet Interactive Tool
B1: Department of Health & Social Care
B2: Interactive tool for calculating the Slope Index
B3: of Inequality (SII) and Relative Index of Inequality (RII) | L3: Dec 25
C7: Step 1: Enter data by deprivation decile | K7: Guidance on using this tool
K8: Data In order to calculate an SII or RII value using this tool, data are required for the indicator of interest broken down by deprivation decile. These indicator values should be entered in cells D10 to D19. If the indicator is a proportion, all values should be between 0 and 1. 95% confidence intervals for the decile values should be entered into cells E10 to E19. If confidence intervals are not available, these cells should be left blank. If this is done, only the SII, RII, and Intercept will be output by the tool. Denominator values for each deprivation decile should be entered into cells G10 to G19. Additional calculation parameters All the additional calculation parameters should be completed before viewing results. Indicator type: This field should be completed with 1 if the indicator is a rate, 2 if the indicator is a proportion, and 0 for other indicator types (for example life expectancy). This argument determines how the standard error is calculated from the confidence interval values, and, if transformation is selected, how the indicator is transformed. Transformation: This field should be completed with TRUE if the indicator is to be log or logit transformed, or FALSE if no transformation is to be applied. See the method tab for details on when to apply a transformation when calculating an SII. This tool only allows transformation for rate or proportion indicators. Repetitions: Enter the number of repetitions required to calculate confidence intervals for the SII and RII. See the method tab for more details on the method used. This field can contain any number between 1,000 and 1,000,000. A small number of repetitions is suggested for testing, but a large number (at least 100,000) is recommended for final results. Confidence level of results: Enter the confidence levels that you require for the confidence intervals of the SII and RII results. This field can contain any number between 50% and 99%. Results Results are presented, with confidence intervals, for both the SII and RII. The units of the SII are the same as those of the input indicator data, and the RII does not have any units. See the methods tab for more details on interpretation of the results. A chart visualising the SII is displayed on the Chart tab.
C9: Decile | D9: Indicator value | E9: Lower 95% confidence interval | F9: Upper 95% confidence interval | G9: Denominator
C10: 1 (most deprived) | D10: 152.3797546 | E10: 149.9589274 | F10: 154.8295271 | G10: 14915653
C11: 2 | D11: 125.5188429 | E11: 123.3432178 | F11: 127.7228624 | G11: 15086655
C12: 3 | D12: 107.6717033 | E12: 105.7194671 | F12: 109.6506724 | G12: 15119203
C13: 4 | D13: 90.98134893 | E13: 89.2686345 | F13: 92.7185011 | G13: 14986094
C14: 5 | D14: 78.70303793 | E14: 77.17360882 | F14: 80.25504683 | G14: 14670691
C15: 6 | D15: 71.29843959 | E15: 69.8791264 | F15: 72.73923152 | G15: 14647622
C16: 7 | D16: 64.26535066 | E16: 62.93676955 | F16: 65.61482231 | G16: 14464673
C17: 8 | D17: 59.04133685 | E17: 57.76762614 | F17: 60.33595633 | G17: 14422469
C18: 9 | D18: 53.02397431 | E18: 51.82466748 | F18: 54.24392801 | G18: 14389398
C19: 10 (least deprived) | D19: 45.08474587 | E19: 43.97848495 | F19: 46.21167751 | G19: 14118227
C20: =IF( OR(AND(G26=0, G29=TRUE), OR(G32<1000, G32>1000000), OR(G35<0.5, G35>0.99) ), "",IF(ISNUMBER(C100)=FALSE,C100,"")) -> 
C24: Step 2: Enter additional calculation parameters
C26: Enter indicator type: | G26: 1
C27: 1 = Rate, 2 = Proportion, 0 = Other
C29: Is indicator transformation required? | G29: TRUE
C30: TRUE = Yes, FALSE = No
C31: =IF(AND(G26=0, G29=TRUE), "ERROR: transformation can only be set to TRUE with rate or proportion indicator types", "") -> 
C32: Enter the number of repetitions required to calculate confidence intervals: | G32: 1000
C33: Minimum = 1,000, Maximum = 1,000,000
C34: =IF(OR(G32<1000, G32>1000000), "ERROR - value must be between 1,000 and 1,000,000", "") -> 
C35: Enter confidence level required for SII/RII results: | G35: 0.95
C36: Minimum = 50%, Maximum = 99%
C37: =IF(OR(G35<0.5, G35>0.99), "ERROR - value must be between 50 and 99", "") -> 
C41: Step 3: View results
C43: Measure | D43: Indicator value | E43: ="Lower " & G35 *100 & "% confidence interval" -> Lower 95% confidence interval | F43: ="Upper " & G35 *100 & "% confidence interval" -> Upper 95% confidence interval
C44: Slope index of inequality (SII) | D44: =IF(ISNUMBER(C100)=FALSE,0,C100) -> -109.1719548 | E44: =D100 -> -111.5148126 | F44: =E100 -> -106.7561098
C45: Relative index of inequality (RII) | D45: =F100 -> 0.2776575119 | E45: =G100 -> 0.2710235963 | F45: =H100 -> 0.284717806
C46: Intercept | D46: =I100 -> 151.1360007
C98: OUTPUTS:
C99: SII | D99: SII LCI | E99: SII UCI | F99: RII | G99: RII LCI | H99: RII UCI | I99: Intercept x=0
C100: =SIITR($D$10:$D$19,$E$10:$E$19,$F$10:$F$19,$G$10:$G$19,$G$32,$G$35,$G$26,$G$29) -> -109.1719548 | D100: -111.5148126 | E100: -106.7561098 | F100: 0.2776575119 | G100: 0.2710235963 | H100: 0.284717806 | I100: 151.1360007

Sheet Chart
B1: Department of Health & Social Care
B2: Interactive tool for calculating the Slope Index
B3: of Inequality (SII) and Relative Index of Inequality (RII) | I3: Dec 25
B5: Copy Chart | AS5: Figures used to calculate the chart (to be hidden or incorporated into VBA code)
B6: Slope index of inequality chart | AS6: Grey values come from interactive tool sheet
B7: =IF('Interactive Tool'!E44=""," Slope index of inequality: "&ROUND('Interactive Tool'!D44,1)," Slope index of inequality: "&ROUND('Interactive Tool'!D44,1)&" ("&'Interactive Tool'!G35*100&"% confidence interval: "&ROUND('Interactive Tool'!E44,1)&" to "&ROUND('Interactive Tool'!F44,1)&")") -> Slope index of inequality: -109.2 (95% confidence interval: -111.5 to -106.8)
B8: =IF('Interactive Tool'!E44="", " Relative index of inequality: "& ROUND('Interactive Tool'!D45,1), " Relative index of inequality: "& ROUND('Interactive Tool'!D45,1) &" ("&'Interactive Tool'!G35*100&"% confidence interval: " & ROUND('Interactive Tool'!E45,1) & " to " & ROUND('Interactive Tool'!F45,1) & ")") -> Relative index of inequality: 0.3 (95% confidence interval: 0.3 to 0.3) | AS8: Table for plotting decile values on chart
AS9: Decile | AT9: Indicator value | AU9: Denominator | AV9: Proportion of pop in decile | AW9: Chart x value
AV10: 0 | AW10: 0
AS11: 1 | AT11: ='Interactive Tool'!D10 -> 152.3797546 | AU11: ='Interactive Tool'!G10 -> 14915653 | AV11: =AU11/SUM($AU$11:$AU$20) -> 0.1015909509 | AW11: =AW10+AV10/2+AV11/2 -> 0.05079547545
AS12: 2 | AT12: ='Interactive Tool'!D11 -> 125.5188429 | AU12: ='Interactive Tool'!G11 -> 15086655 | AV12: 0.1027556505 | AW12: =AW11+AV11/2+AV12/2 -> 0.1529687762
AS13: 3 | AT13: ='Interactive Tool'!D12 -> 107.6717033 | AU13: ='Interactive Tool'!G12 -> 15119203 | AV13: 0.1029773359 | AW13: =AW12+AV12/2+AV13/2 -> 0.2558352694
AS14: 4 | AT14: ='Interactive Tool'!D13 -> 90.98134893 | AU14: ='Interactive Tool'!G13 -> 14986094 | AV14: 0.1020707266 | AW14: 0.3583593007
AS15: 5 | AT15: ='Interactive Tool'!D14 -> 78.70303793 | AU15: ='Interactive Tool'!G14 -> 14670691 | AV15: 0.09992250751 | AW15: 0.4593559177
AS16: 6 | AT16: ='Interactive Tool'!D15 -> 71.29843959 | AU16: ='Interactive Tool'!G15 -> 14647622 | AV16: 0.09976538388 | AW16: 0.5591998634
AS17: 7 | AT17: ='Interactive Tool'!D16 -> 64.26535066 | AU17: ='Interactive Tool'!G16 -> 14464673 | AV17: 0.09851931286 | AW17: 0.6583422118
AS18: 8 | AT18: ='Interactive Tool'!D17 -> 59.04133685 | AU18: ='Interactive Tool'!G17 -> 14422469 | AV18: 0.09823186018 | AW18: 0.7567177983
AS19: 9 | AT19: ='Interactive Tool'!D18 -> 53.02397431 | AU19: ='Interactive Tool'!G18 -> 14389398 | AV19: 0.09800661262 | AW19: 0.8548370347
AS20: 10 | AT20: ='Interactive Tool'!D19 -> 45.08474587 | AU20: ='Interactive Tool'!G19 -> 14118227 | AV20: 0.09615965897 | AW20: 0.9519201705
AS23: Table for plotting SII line on chart
AS24: intercept | AT24: ='Interactive Tool'!D46 -> 151.1360007
AS25: sii | AT25: ='Interactive Tool'!D44 -> -109.1719548
AS28: Chart x value | AT28: Intercept and x=1 indicator value | AU28: transformed values (if required) | AV28: Antitransformed values to plot
AS29: 0 | AT29: =AT24 -> 151.1360007 | AU29: =IF('Interactive Tool'!$G$29=FALSE,AT29,IF(AND('Interactive Tool'!$G$29=TRUE,'Interactive Tool'!$G$26=1),LN(AT29),IF(AND('Interactive Tool'!$G$29=TRUE,'Interactive Tool'!$G$26=2),LN(AT29/(1-AT29)),"error"))) -> 5.018180098 | AV29: =IF('Interactive Tool'!$G$29=FALSE,AU29,IF(AND('Interactive Tool'!$G$29=TRUE,'Interactive Tool'!$G$26=1),EXP(AU29), IF(AND('Interactive Tool'!$G$29=TRUE,'Interactive Tool'!$G$26=2),EXP(AU29)/(1 + EXP(AU29)), "error"))) -> 151.1360007
AS30: 0.01 | AU30: =(AS30*$AU$132)+$AU$29 -> 5.005366429 | AV30: =IF('Interactive Tool'!$G$29=FALSE,AU30,IF(AND('Interactive Tool'!$G$29=TRUE,'Interactive Tool'!$G$26=1),EXP(AU30), IF(AND('Interactive Tool'!$G$29=TRUE,'Interactive Tool'!$G$26=2),EXP(AU30)/(1 + EXP(AU30)), "error"))) -> 149.2117487
AS31: 0.02 | AU31: 4.992552761 | AV31: =IF('Interactive Tool'!$G$29=FALSE,AU31,IF(AND('Interactive Tool'!$G$29=TRUE,'Interactive Tool'!$G$26=1),EXP(AU31), IF(AND('Interactive Tool'!$G$29=TRUE,'Interactive Tool'!$G$26=2),EXP(AU31)/(1 + EXP(AU31)), "error"))) -> 147.3119962
AS32: 0.03 | AU32: 4.979739092 | AV32: =IF('Interactive Tool'!$G$29=FALSE,AU32,IF(AND('Interactive Tool'!$G$29=TRUE,'Interactive Tool'!$G$26=1),EXP(AU32), IF(AND('Interactive Tool'!$G$29=TRUE,'Interactive Tool'!$G$26=2),EXP(AU32)/(1 + EXP(AU32)), "error"))) -> 145.4364311
AS33: 0.04 | AU33: 4.966925423 | AV33: =IF('Interactive Tool'!$G$29=FALSE,AU33,IF(AND('Interactive Tool'!$G$29=TRUE,'Interactive Tool'!$G$26=1),EXP(AU33), IF(AND('Interactive Tool'!$G$29=TRUE,'Interactive Tool'!$G$26=2),EXP(AU33)/(1 + EXP(AU33)), "error"))) -> 143.5847456
AS34: 0.05 | AU34: 4.954111754 | AV34: =IF('Interactive Tool'!$G$29=FALSE,AU34,IF(AND('Interactive Tool'!$G$29=TRUE,'Interactive Tool'!$G$26=1),EXP(AU34), IF(AND('Interactive Tool'!$G$29=TRUE,'Interactive Tool'!$G$26=2),EXP(AU34)/(1 + EXP(AU34)), "error"))) -> 141.7566356
AS35: 0.06 | AU35: 4.941298085 | AV35: =IF('Interactive Tool'!$G$29=FALSE,AU35,IF(AND('Interactive Tool'!$G$29=TRUE,'Interactive Tool'!$G$26=1),EXP(AU35), IF(AND('Interactive Tool'!$G$29=TRUE,'Interactive Tool'!$G$26=2),EXP(AU35)/(1 + EXP(AU35)), "error"))) -> 139.951801
AS36: 0.07 | AU36: 4.928484416 | AV36: =IF('Interactive Tool'!$G$29=FALSE,AU36,IF(AND('Interactive Tool'!$G$29=TRUE,'Interactive Tool'!$G$26=1),EXP(AU36), IF(AND('Interactive Tool'!$G$29=TRUE,'Interactive Tool'!$G$26=2),EXP(AU36)/(1 + EXP(AU36)), "error"))) -> 138.1699454
AS37: 0.08 | AU37: 4.915670747 | AV37: =IF('Interactive Tool'!$G$29=FALSE,AU37,IF(AND('Interactive Tool'!$G$29=TRUE,'Interactive Tool'!$G$26=1),EXP(AU37), IF(AND('Interactive Tool'!$G$29=TRUE,'Interactive Tool'!$G$26=2),EXP(AU37)/(1 + EXP(AU37)), "error"))) -> 136.4107762
AS38: 0.09 | AU38: 4.902857078 | AV38: =IF('Interactive Tool'!$G$29=FALSE,AU38,IF(AND('Interactive Tool'!$G$29=TRUE,'Interactive Tool'!$G$26=1),EXP(AU38), IF(AND('Interactive Tool'!$G$29=TRUE,'Interactive Tool'!$G$26=2),EXP(AU38)/(1 + EXP(AU38)), "error"))) -> 134.6740046
AS39: 0.1 | AU39: 4.890043409 | AV39: =IF('Interactive Tool'!$G$29=FALSE,AU39,IF(AND('Interactive Tool'!$G$29=TRUE,'Interactive Tool'!$G$26=1),EXP(AU39), IF(AND('Interactive Tool'!$G$29=TRUE,'Interactive Tool'!$G$26=2),EXP(AU39)/(1 + EXP(AU39)), "error"))) -> 132.9593455
AS40: 0.11 | AU40: 4.87722974 | AV40: =IF('Interactive Tool'!$G$29=FALSE,AU40,IF(AND('Interactive Tool'!$G$29=TRUE,'Interactive Tool'!$G$26=1),EXP(AU40), IF(AND('Interactive Tool'!$G$29=TRUE,'Interactive Tool'!$G$26=2),EXP(AU40)/(1 + EXP(AU40)), "error"))) -> 131.2665173
AS41: 0.12 | AU41: 4.864416071 | AV41: =IF('Interactive Tool'!$G$29=FALSE,AU41,IF(AND('Interactive Tool'!$G$29=TRUE,'Interactive Tool'!$G$26=1),EXP(AU41), IF(AND('Interactive Tool'!$G$29=TRUE,'Interactive Tool'!$G$26=2),EXP(AU41)/(1 + EXP(AU41)), "error"))) -> 129.5952421
AS42: 0.13 | AU42: 4.851602402 | AV42: =IF('Interactive Tool'!$G$29=FALSE,AU42,IF(AND('Interactive Tool'!$G$29=TRUE,'Interactive Tool'!$G$26=1),EXP(AU42), IF(AND('Interactive Tool'!$G$29=TRUE,'Interactive Tool'!$G$26=2),EXP(AU42)/(1 + EXP(AU42)), "error"))) -> 127.9452454
AS43: 0.14 | AU43: 4.838788733 | AV43: =IF('Interactive Tool'!$G$29=FALSE,AU43,IF(AND('Interactive Tool'!$G$29=TRUE,'Interactive Tool'!$G$26=1),EXP(AU43), IF(AND('Interactive Tool'!$G$29=TRUE,'Interactive Tool'!$G$26=2),EXP(AU43)/(1 + EXP(AU43)), "error"))) -> 126.3162563
AS44: 0.15 | AU44: 4.825975064 | AV44: =IF('Interactive Tool'!$G$29=FALSE,AU44,IF(AND('Interactive Tool'!$G$29=TRUE,'Interactive Tool'!$G$26=1),EXP(AU44), IF(AND('Interactive Tool'!$G$29=TRUE,'Interactive Tool'!$G$26=2),EXP(AU44)/(1 + EXP(AU44)), "error"))) -> 124.7080074
AS45: 0.16 | AU45: 4.813161395 | AV45: =IF('Interactive Tool'!$G$29=FALSE,AU45,IF(AND('Interactive Tool'!$G$29=TRUE,'Interactive Tool'!$G$26=1),EXP(AU45), IF(AND('Interactive Tool'!$G$29=TRUE,'Interactive Tool'!$G$26=2),EXP(AU45)/(1 + EXP(AU45)), "error"))) -> 123.1202346
AS46: 0.17 | AU46: 4.800347726 | AV46: =IF('Interactive Tool'!$G$29=FALSE,AU46,IF(AND('Interactive Tool'!$G$29=TRUE,'Interactive Tool'!$G$26=1),EXP(AU46), IF(AND('Interactive Tool'!$G$29=TRUE,'Interactive Tool'!$G$26=2),EXP(AU46)/(1 + EXP(AU46)), "error"))) -> 121.5526772
AS47: 0.18 | AU47: 4.787534057 | AV47: =IF('Interactive Tool'!$G$29=FALSE,AU47,IF(AND('Interactive Tool'!$G$29=TRUE,'Interactive Tool'!$G$26=1),EXP(AU47), IF(AND('Interactive Tool'!$G$29=TRUE,'Interactive Tool'!$G$26=2),EXP(AU47)/(1 + EXP(AU47)), "error"))) -> 120.0050778
AS48: 0.19 | AU48: 4.774720388 | AV48: =IF('Interactive Tool'!$G$29=FALSE,AU48,IF(AND('Interactive Tool'!$G$29=TRUE,'Interactive Tool'!$G$26=1),EXP(AU48), IF(AND('Interactive Tool'!$G$29=TRUE,'Interactive Tool'!$G$26=2),EXP(AU48)/(1 + EXP(AU48)), "error"))) -> 118.4771824
AS49: 0.2 | AU49: 4.761906719 | AV49: =IF('Interactive Tool'!$G$29=FALSE,AU49,IF(AND('Interactive Tool'!$G$29=TRUE,'Interactive Tool'!$G$26=1),EXP(AU49), IF(AND('Interactive Tool'!$G$29=TRUE,'Interactive Tool'!$G$26=2),EXP(AU49)/(1 + EXP(AU49)), "error"))) -> 116.9687399
AS50: 0.21 | AU50: 4.74909305 | AV50: =IF('Interactive Tool'!$G$29=FALSE,AU50,IF(AND('Interactive Tool'!$G$29=TRUE,'Interactive Tool'!$G$26=1),EXP(AU50), IF(AND('Interactive Tool'!$G$29=TRUE,'Interactive Tool'!$G$26=2),EXP(AU50)/(1 + EXP(AU50)), "error"))) -> 115.4795029
AS51: 0.22 | AU51: 4.736279381 | AV51: =IF('Interactive Tool'!$G$29=FALSE,AU51,IF(AND('Interactive Tool'!$G$29=TRUE,'Interactive Tool'!$G$26=1),EXP(AU51), IF(AND('Interactive Tool'!$G$29=TRUE,'Interactive Tool'!$G$26=2),EXP(AU51)/(1 + EXP(AU51)), "error"))) -> 114.0092267
AS52: 0.23 | AU52: 4.723465712 | AV52: =IF('Interactive Tool'!$G$29=FALSE,AU52,IF(AND('Interactive Tool'!$G$29=TRUE,'Interactive Tool'!$G$26=1),EXP(AU52), IF(AND('Interactive Tool'!$G$29=TRUE,'Interactive Tool'!$G$26=2),EXP(AU52)/(1 + EXP(AU52)), "error"))) -> 112.55767
AS53: 0.24 | AU53: 4.710652043 | AV53: =IF('Interactive Tool'!$G$29=FALSE,AU53,IF(AND('Interactive Tool'!$G$29=TRUE,'Interactive Tool'!$G$26=1),EXP(AU53), IF(AND('Interactive Tool'!$G$29=TRUE,'Interactive Tool'!$G$26=2),EXP(AU53)/(1 + EXP(AU53)), "error"))) -> 111.1245943
AS54: 0.25 | AU54: 4.697838374 | AV54: =IF('Interactive Tool'!$G$29=FALSE,AU54,IF(AND('Interactive Tool'!$G$29=TRUE,'Interactive Tool'!$G$26=1),EXP(AU54), IF(AND('Interactive Tool'!$G$29=TRUE,'Interactive Tool'!$G$26=2),EXP(AU54)/(1 + EXP(AU54)), "error"))) -> 109.7097645
AS55: 0.26 | AU55: 4.685024705 | AV55: =IF('Interactive Tool'!$G$29=FALSE,AU55,IF(AND('Interactive Tool'!$G$29=TRUE,'Interactive Tool'!$G$26=1),EXP(AU55), IF(AND('Interactive Tool'!$G$29=TRUE,'Interactive Tool'!$G$26=2),EXP(AU55)/(1 + EXP(AU55)), "error"))) -> 108.3129482
AS56: 0.27 | AU56: 4.672211036 | AV56: =IF('Interactive Tool'!$G$29=FALSE,AU56,IF(AND('Interactive Tool'!$G$29=TRUE,'Interactive Tool'!$G$26=1),EXP(AU56), IF(AND('Interactive Tool'!$G$29=TRUE,'Interactive Tool'!$G$26=2),EXP(AU56)/(1 + EXP(AU56)), "error"))) -> 106.933916
AS57: 0.28 | AU57: 4.659397367 | AV57: =IF('Interactive Tool'!$G$29=FALSE,AU57,IF(AND('Interactive Tool'!$G$29=TRUE,'Interactive Tool'!$G$26=1),EXP(AU57), IF(AND('Interactive Tool'!$G$29=TRUE,'Interactive Tool'!$G$26=2),EXP(AU57)/(1 + EXP(AU57)), "error"))) -> 105.5724416
AS58: 0.29 | AU58: 4.646583699 | AV58: =IF('Interactive Tool'!$G$29=FALSE,AU58,IF(AND('Interactive Tool'!$G$29=TRUE,'Interactive Tool'!$G$26=1),EXP(AU58), IF(AND('Interactive Tool'!$G$29=TRUE,'Interactive Tool'!$G$26=2),EXP(AU58)/(1 + EXP(AU58)), "error"))) -> 104.2283014
AS59: 0.3 | AU59: 4.63377003 | AV59: =IF('Interactive Tool'!$G$29=FALSE,AU59,IF(AND('Interactive Tool'!$G$29=TRUE,'Interactive Tool'!$G$26=1),EXP(AU59), IF(AND('Interactive Tool'!$G$29=TRUE,'Interactive Tool'!$G$26=2),EXP(AU59)/(1 + EXP(AU59)), "error"))) -> 102.9012746
AS60: 0.31 | AU60: 4.620956361 | AV60: =IF('Interactive Tool'!$G$29=FALSE,AU60,IF(AND('Interactive Tool'!$G$29=TRUE,'Interactive Tool'!$G$26=1),EXP(AU60), IF(AND('Interactive Tool'!$G$29=TRUE,'Interactive Tool'!$G$26=2),EXP(AU60)/(1 + EXP(AU60)), "error"))) -> 101.5911435
AS61: 0.32 | AU61: 4.608142692 | AV61: =IF('Interactive Tool'!$G$29=FALSE,AU61,IF(AND('Interactive Tool'!$G$29=TRUE,'Interactive Tool'!$G$26=1),EXP(AU61), IF(AND('Interactive Tool'!$G$29=TRUE,'Interactive Tool'!$G$26=2),EXP(AU61)/(1 + EXP(AU61)), "error"))) -> 100.2976928
AS62: 0.33 | AU62: =(AS62*$AU$132)+$AU$29 -> 4.595329023 | AV62: =IF('Interactive Tool'!$G$29=FALSE,AU62,IF(AND('Interactive Tool'!$G$29=TRUE,'Interactive Tool'!$G$26=1),EXP(AU62), IF(AND('Interactive Tool'!$G$29=TRUE,'Interactive Tool'!$G$26=2),EXP(AU62)/(1 + EXP(AU62)), "error"))) -> 99.02071025
AS63: 0.34 | AU63: 4.582515354 | AV63: =IF('Interactive Tool'!$G$29=FALSE,AU63,IF(AND('Interactive Tool'!$G$29=TRUE,'Interactive Tool'!$G$26=1),EXP(AU63), IF(AND('Interactive Tool'!$G$29=TRUE,'Interactive Tool'!$G$26=2),EXP(AU63)/(1 + EXP(AU63)), "error"))) -> 97.75998615
AS64: 0.35 | AU64: 4.569701685 | AV64: =IF('Interactive Tool'!$G$29=FALSE,AU64,IF(AND('Interactive Tool'!$G$29=TRUE,'Interactive Tool'!$G$26=1),EXP(AU64), IF(AND('Interactive Tool'!$G$29=TRUE,'Interactive Tool'!$G$26=2),EXP(AU64)/(1 + EXP(AU64)), "error"))) -> 96.51531349
AS65: 0.36 | AU65: 4.556888016 | AV65: =IF('Interactive Tool'!$G$29=FALSE,AU65,IF(AND('Interactive Tool'!$G$29=TRUE,'Interactive Tool'!$G$26=1),EXP(AU65), IF(AND('Interactive Tool'!$G$29=TRUE,'Interactive Tool'!$G$26=2),EXP(AU65)/(1 + EXP(AU65)), "error"))) -> 95.28648791
AS66: 0.37 | AU66: 4.544074347 | AV66: =IF('Interactive Tool'!$G$29=FALSE,AU66,IF(AND('Interactive Tool'!$G$29=TRUE,'Interactive Tool'!$G$26=1),EXP(AU66), IF(AND('Interactive Tool'!$G$29=TRUE,'Interactive Tool'!$G$26=2),EXP(AU66)/(1 + EXP(AU66)), "error"))) -> 94.07330764
AS67: 0.38 | AU67: 4.531260678 | AV67: =IF('Interactive Tool'!$G$29=FALSE,AU67,IF(AND('Interactive Tool'!$G$29=TRUE,'Interactive Tool'!$G$26=1),EXP(AU67), IF(AND('Interactive Tool'!$G$29=TRUE,'Interactive Tool'!$G$26=2),EXP(AU67)/(1 + EXP(AU67)), "error"))) -> 92.87557349
AS68: 0.39 | AU68: 4.518447009 | AV68: =IF('Interactive Tool'!$G$29=FALSE,AU68,IF(AND('Interactive Tool'!$G$29=TRUE,'Interactive Tool'!$G$26=1),EXP(AU68), IF(AND('Interactive Tool'!$G$29=TRUE,'Interactive Tool'!$G$26=2),EXP(AU68)/(1 + EXP(AU68)), "error"))) -> 91.6930888
AS69: 0.4 | AU69: 4.50563334 | AV69: =IF('Interactive Tool'!$G$29=FALSE,AU69,IF(AND('Interactive Tool'!$G$29=TRUE,'Interactive Tool'!$G$26=1),EXP(AU69), IF(AND('Interactive Tool'!$G$29=TRUE,'Interactive Tool'!$G$26=2),EXP(AU69)/(1 + EXP(AU69)), "error"))) -> 90.52565941
AS70: 0.41 | AU70: 4.492819671 | AV70: =IF('Interactive Tool'!$G$29=FALSE,AU70,IF(AND('Interactive Tool'!$G$29=TRUE,'Interactive Tool'!$G$26=1),EXP(AU70), IF(AND('Interactive Tool'!$G$29=TRUE,'Interactive Tool'!$G$26=2),EXP(AU70)/(1 + EXP(AU70)), "error"))) -> 89.37309365
AS71: 0.42 | AU71: 4.480006002 | AV71: =IF('Interactive Tool'!$G$29=FALSE,AU71,IF(AND('Interactive Tool'!$G$29=TRUE,'Interactive Tool'!$G$26=1),EXP(AU71), IF(AND('Interactive Tool'!$G$29=TRUE,'Interactive Tool'!$G$26=2),EXP(AU71)/(1 + EXP(AU71)), "error"))) -> 88.23520226
AS72: 0.43 | AU72: 4.467192333 | AV72: =IF('Interactive Tool'!$G$29=FALSE,AU72,IF(AND('Interactive Tool'!$G$29=TRUE,'Interactive Tool'!$G$26=1),EXP(AU72), IF(AND('Interactive Tool'!$G$29=TRUE,'Interactive Tool'!$G$26=2),EXP(AU72)/(1 + EXP(AU72)), "error"))) -> 87.11179842
AS73: 0.44 | AU73: 4.454378664 | AV73: =IF('Interactive Tool'!$G$29=FALSE,AU73,IF(AND('Interactive Tool'!$G$29=TRUE,'Interactive Tool'!$G$26=1),EXP(AU73), IF(AND('Interactive Tool'!$G$29=TRUE,'Interactive Tool'!$G$26=2),EXP(AU73)/(1 + EXP(AU73)), "error"))) -> 86.00269768
AS74: 0.45 | AU74: 4.441564995 | AV74: =IF('Interactive Tool'!$G$29=FALSE,AU74,IF(AND('Interactive Tool'!$G$29=TRUE,'Interactive Tool'!$G$26=1),EXP(AU74), IF(AND('Interactive Tool'!$G$29=TRUE,'Interactive Tool'!$G$26=2),EXP(AU74)/(1 + EXP(AU74)), "error"))) -> 84.90771791
AS75: 0.46 | AU75: 4.428751326 | AV75: =IF('Interactive Tool'!$G$29=FALSE,AU75,IF(AND('Interactive Tool'!$G$29=TRUE,'Interactive Tool'!$G$26=1),EXP(AU75), IF(AND('Interactive Tool'!$G$29=TRUE,'Interactive Tool'!$G$26=2),EXP(AU75)/(1 + EXP(AU75)), "error"))) -> 83.82667935
AS76: 0.47 | AU76: 4.415937657 | AV76: =IF('Interactive Tool'!$G$29=FALSE,AU76,IF(AND('Interactive Tool'!$G$29=TRUE,'Interactive Tool'!$G$26=1),EXP(AU76), IF(AND('Interactive Tool'!$G$29=TRUE,'Interactive Tool'!$G$26=2),EXP(AU76)/(1 + EXP(AU76)), "error"))) -> 82.75940449
AS77: 0.48 | AU77: 4.403123988 | AV77: =IF('Interactive Tool'!$G$29=FALSE,AU77,IF(AND('Interactive Tool'!$G$29=TRUE,'Interactive Tool'!$G$26=1),EXP(AU77), IF(AND('Interactive Tool'!$G$29=TRUE,'Interactive Tool'!$G$26=2),EXP(AU77)/(1 + EXP(AU77)), "error"))) -> 81.70571809
AS78: 0.49 | AU78: 4.390310319 | AV78: =IF('Interactive Tool'!$G$29=FALSE,AU78,IF(AND('Interactive Tool'!$G$29=TRUE,'Interactive Tool'!$G$26=1),EXP(AU78), IF(AND('Interactive Tool'!$G$29=TRUE,'Interactive Tool'!$G$26=2),EXP(AU78)/(1 + EXP(AU78)), "error"))) -> 80.66544714
AS79: 0.5 | AU79: 4.37749665 | AV79: =IF('Interactive Tool'!$G$29=FALSE,AU79,IF(AND('Interactive Tool'!$G$29=TRUE,'Interactive Tool'!$G$26=1),EXP(AU79), IF(AND('Interactive Tool'!$G$29=TRUE,'Interactive Tool'!$G$26=2),EXP(AU79)/(1 + EXP(AU79)), "error"))) -> 79.63842084
AS80: 0.51 | AU80: 4.364682981 | AV80: =IF('Interactive Tool'!$G$29=FALSE,AU80,IF(AND('Interactive Tool'!$G$29=TRUE,'Interactive Tool'!$G$26=1),EXP(AU80), IF(AND('Interactive Tool'!$G$29=TRUE,'Interactive Tool'!$G$26=2),EXP(AU80)/(1 + EXP(AU80)), "error"))) -> 78.62447057
AS81: 0.52 | AU81: 4.351869312 | AV81: =IF('Interactive Tool'!$G$29=FALSE,AU81,IF(AND('Interactive Tool'!$G$29=TRUE,'Interactive Tool'!$G$26=1),EXP(AU81), IF(AND('Interactive Tool'!$G$29=TRUE,'Interactive Tool'!$G$26=2),EXP(AU81)/(1 + EXP(AU81)), "error"))) -> 77.62342983
AS82: 0.53 | AU82: 4.339055643 | AV82: =IF('Interactive Tool'!$G$29=FALSE,AU82,IF(AND('Interactive Tool'!$G$29=TRUE,'Interactive Tool'!$G$26=1),EXP(AU82), IF(AND('Interactive Tool'!$G$29=TRUE,'Interactive Tool'!$G$26=2),EXP(AU82)/(1 + EXP(AU82)), "error"))) -> 76.63513426
AS83: 0.54 | AU83: 4.326241974 | AV83: =IF('Interactive Tool'!$G$29=FALSE,AU83,IF(AND('Interactive Tool'!$G$29=TRUE,'Interactive Tool'!$G$26=1),EXP(AU83), IF(AND('Interactive Tool'!$G$29=TRUE,'Interactive Tool'!$G$26=2),EXP(AU83)/(1 + EXP(AU83)), "error"))) -> 75.6594216
AS84: 0.55 | AU84: 4.313428305 | AV84: =IF('Interactive Tool'!$G$29=FALSE,AU84,IF(AND('Interactive Tool'!$G$29=TRUE,'Interactive Tool'!$G$26=1),EXP(AU84), IF(AND('Interactive Tool'!$G$29=TRUE,'Interactive Tool'!$G$26=2),EXP(AU84)/(1 + EXP(AU84)), "error"))) -> 74.69613164
AS85: 0.56 | AU85: 4.300614637 | AV85: =IF('Interactive Tool'!$G$29=FALSE,AU85,IF(AND('Interactive Tool'!$G$29=TRUE,'Interactive Tool'!$G$26=1),EXP(AU85), IF(AND('Interactive Tool'!$G$29=TRUE,'Interactive Tool'!$G$26=2),EXP(AU85)/(1 + EXP(AU85)), "error"))) -> 73.74510621
AS86: 0.57 | AU86: 4.287800968 | AV86: =IF('Interactive Tool'!$G$29=FALSE,AU86,IF(AND('Interactive Tool'!$G$29=TRUE,'Interactive Tool'!$G$26=1),EXP(AU86), IF(AND('Interactive Tool'!$G$29=TRUE,'Interactive Tool'!$G$26=2),EXP(AU86)/(1 + EXP(AU86)), "error"))) -> 72.80618916
AS87: 0.58 | AU87: 4.274987299 | AV87: =IF('Interactive Tool'!$G$29=FALSE,AU87,IF(AND('Interactive Tool'!$G$29=TRUE,'Interactive Tool'!$G$26=1),EXP(AU87), IF(AND('Interactive Tool'!$G$29=TRUE,'Interactive Tool'!$G$26=2),EXP(AU87)/(1 + EXP(AU87)), "error"))) -> 71.87922634
AS88: 0.59 | AU88: 4.26217363 | AV88: =IF('Interactive Tool'!$G$29=FALSE,AU88,IF(AND('Interactive Tool'!$G$29=TRUE,'Interactive Tool'!$G$26=1),EXP(AU88), IF(AND('Interactive Tool'!$G$29=TRUE,'Interactive Tool'!$G$26=2),EXP(AU88)/(1 + EXP(AU88)), "error"))) -> 70.96406553
AS89: 0.6 | AU89: 4.249359961 | AV89: =IF('Interactive Tool'!$G$29=FALSE,AU89,IF(AND('Interactive Tool'!$G$29=TRUE,'Interactive Tool'!$G$26=1),EXP(AU89), IF(AND('Interactive Tool'!$G$29=TRUE,'Interactive Tool'!$G$26=2),EXP(AU89)/(1 + EXP(AU89)), "error"))) -> 70.06055648
AS90: 0.61 | AU90: 4.236546292 | AV90: =IF('Interactive Tool'!$G$29=FALSE,AU90,IF(AND('Interactive Tool'!$G$29=TRUE,'Interactive Tool'!$G$26=1),EXP(AU90), IF(AND('Interactive Tool'!$G$29=TRUE,'Interactive Tool'!$G$26=2),EXP(AU90)/(1 + EXP(AU90)), "error"))) -> 69.16855084
AS91: 0.62 | AU91: 4.223732623 | AV91: =IF('Interactive Tool'!$G$29=FALSE,AU91,IF(AND('Interactive Tool'!$G$29=TRUE,'Interactive Tool'!$G$26=1),EXP(AU91), IF(AND('Interactive Tool'!$G$29=TRUE,'Interactive Tool'!$G$26=2),EXP(AU91)/(1 + EXP(AU91)), "error"))) -> 68.28790215
AS92: 0.63 | AU92: 4.210918954 | AV92: =IF('Interactive Tool'!$G$29=FALSE,AU92,IF(AND('Interactive Tool'!$G$29=TRUE,'Interactive Tool'!$G$26=1),EXP(AU92), IF(AND('Interactive Tool'!$G$29=TRUE,'Interactive Tool'!$G$26=2),EXP(AU92)/(1 + EXP(AU92)), "error"))) -> 67.41846581
AS93: 0.64 | AU93: 4.198105285 | AV93: =IF('Interactive Tool'!$G$29=FALSE,AU93,IF(AND('Interactive Tool'!$G$29=TRUE,'Interactive Tool'!$G$26=1),EXP(AU93), IF(AND('Interactive Tool'!$G$29=TRUE,'Interactive Tool'!$G$26=2),EXP(AU93)/(1 + EXP(AU93)), "error"))) -> 66.56009906
AS94: 0.65 | AU94: =(AS94*$AU$132)+$AU$29 -> 4.185291616 | AV94: =IF('Interactive Tool'!$G$29=FALSE,AU94,IF(AND('Interactive Tool'!$G$29=TRUE,'Interactive Tool'!$G$26=1),EXP(AU94), IF(AND('Interactive Tool'!$G$29=TRUE,'Interactive Tool'!$G$26=2),EXP(AU94)/(1 + EXP(AU94)), "error"))) -> 65.71266098
AS95: 0.66 | AU95: 4.172477947 | AV95: =IF('Interactive Tool'!$G$29=FALSE,AU95,IF(AND('Interactive Tool'!$G$29=TRUE,'Interactive Tool'!$G$26=1),EXP(AU95), IF(AND('Interactive Tool'!$G$29=TRUE,'Interactive Tool'!$G$26=2),EXP(AU95)/(1 + EXP(AU95)), "error"))) -> 64.87601241
AS96: 0.67 | AU96: 4.159664278 | AV96: =IF('Interactive Tool'!$G$29=FALSE,AU96,IF(AND('Interactive Tool'!$G$29=TRUE,'Interactive Tool'!$G$26=1),EXP(AU96), IF(AND('Interactive Tool'!$G$29=TRUE,'Interactive Tool'!$G$26=2),EXP(AU96)/(1 + EXP(AU96)), "error"))) -> 64.05001599
AS97: 0.68 | AU97: 4.146850609 | AV97: =IF('Interactive Tool'!$G$29=FALSE,AU97,IF(AND('Interactive Tool'!$G$29=TRUE,'Interactive Tool'!$G$26=1),EXP(AU97), IF(AND('Interactive Tool'!$G$29=TRUE,'Interactive Tool'!$G$26=2),EXP(AU97)/(1 + EXP(AU97)), "error"))) -> 63.23453609
AS98: 0.69 | AU98: 4.13403694 | AV98: =IF('Interactive Tool'!$G$29=FALSE,AU98,IF(AND('Interactive Tool'!$G$29=TRUE,'Interactive Tool'!$G$26=1),EXP(AU98), IF(AND('Interactive Tool'!$G$29=TRUE,'Interactive Tool'!$G$26=2),EXP(AU98)/(1 + EXP(AU98)), "error"))) -> 62.42943882
AS99: 0.7 | AU99: 4.121223271 | AV99: =IF('Interactive Tool'!$G$29=FALSE,AU99,IF(AND('Interactive Tool'!$G$29=TRUE,'Interactive Tool'!$G$26=1),EXP(AU99), IF(AND('Interactive Tool'!$G$29=TRUE,'Interactive Tool'!$G$26=2),EXP(AU99)/(1 + EXP(AU99)), "error"))) -> 61.63459198
AS100: 0.71 | AU100: 4.108409602 | AV100: =IF('Interactive Tool'!$G$29=FALSE,AU100,IF(AND('Interactive Tool'!$G$29=TRUE,'Interactive Tool'!$G$26=1),EXP(AU100), IF(AND('Interactive Tool'!$G$29=TRUE,'Interactive Tool'!$G$26=2),EXP(AU100)/(1 + EXP(AU100)), "error"))) -> 60.84986507
AS101: 0.72 | AU101: 4.095595933 | AV101: =IF('Interactive Tool'!$G$29=FALSE,AU101,IF(AND('Interactive Tool'!$G$29=TRUE,'Interactive Tool'!$G$26=1),EXP(AU101), IF(AND('Interactive Tool'!$G$29=TRUE,'Interactive Tool'!$G$26=2),EXP(AU101)/(1 + EXP(AU101)), "error"))) -> 60.07512925
AS102: 0.73 | AU102: 4.082782264 | AV102: =IF('Interactive Tool'!$G$29=FALSE,AU102,IF(AND('Interactive Tool'!$G$29=TRUE,'Interactive Tool'!$G$26=1),EXP(AU102), IF(AND('Interactive Tool'!$G$29=TRUE,'Interactive Tool'!$G$26=2),EXP(AU102)/(1 + EXP(AU102)), "error"))) -> 59.31025731
AS103: 0.74 | AU103: 4.069968595 | AV103: =IF('Interactive Tool'!$G$29=FALSE,AU103,IF(AND('Interactive Tool'!$G$29=TRUE,'Interactive Tool'!$G$26=1),EXP(AU103), IF(AND('Interactive Tool'!$G$29=TRUE,'Interactive Tool'!$G$26=2),EXP(AU103)/(1 + EXP(AU103)), "error"))) -> 58.55512365
AS104: 0.75 | AU104: 4.057154926 | AV104: =IF('Interactive Tool'!$G$29=FALSE,AU104,IF(AND('Interactive Tool'!$G$29=TRUE,'Interactive Tool'!$G$26=1),EXP(AU104), IF(AND('Interactive Tool'!$G$29=TRUE,'Interactive Tool'!$G$26=2),EXP(AU104)/(1 + EXP(AU104)), "error"))) -> 57.8096043
AS105: 0.76 | AU105: 4.044341257 | AV105: =IF('Interactive Tool'!$G$29=FALSE,AU105,IF(AND('Interactive Tool'!$G$29=TRUE,'Interactive Tool'!$G$26=1),EXP(AU105), IF(AND('Interactive Tool'!$G$29=TRUE,'Interactive Tool'!$G$26=2),EXP(AU105)/(1 + EXP(AU105)), "error"))) -> 57.07357684
AS106: 0.77 | AU106: 4.031527588 | AV106: =IF('Interactive Tool'!$G$29=FALSE,AU106,IF(AND('Interactive Tool'!$G$29=TRUE,'Interactive Tool'!$G$26=1),EXP(AU106), IF(AND('Interactive Tool'!$G$29=TRUE,'Interactive Tool'!$G$26=2),EXP(AU106)/(1 + EXP(AU106)), "error"))) -> 56.34692043
AS107: 0.78 | AU107: 4.018713919 | AV107: =IF('Interactive Tool'!$G$29=FALSE,AU107,IF(AND('Interactive Tool'!$G$29=TRUE,'Interactive Tool'!$G$26=1),EXP(AU107), IF(AND('Interactive Tool'!$G$29=TRUE,'Interactive Tool'!$G$26=2),EXP(AU107)/(1 + EXP(AU107)), "error"))) -> 55.62951576
AS108: 0.79 | AU108: 4.00590025 | AV108: =IF('Interactive Tool'!$G$29=FALSE,AU108,IF(AND('Interactive Tool'!$G$29=TRUE,'Interactive Tool'!$G$26=1),EXP(AU108), IF(AND('Interactive Tool'!$G$29=TRUE,'Interactive Tool'!$G$26=2),EXP(AU108)/(1 + EXP(AU108)), "error"))) -> 54.92124502
AS109: 0.8 | AU109: 3.993086581 | AV109: =IF('Interactive Tool'!$G$29=FALSE,AU109,IF(AND('Interactive Tool'!$G$29=TRUE,'Interactive Tool'!$G$26=1),EXP(AU109), IF(AND('Interactive Tool'!$G$29=TRUE,'Interactive Tool'!$G$26=2),EXP(AU109)/(1 + EXP(AU109)), "error"))) -> 54.22199194
AS110: 0.81 | AU110: 3.980272912 | AV110: =IF('Interactive Tool'!$G$29=FALSE,AU110,IF(AND('Interactive Tool'!$G$29=TRUE,'Interactive Tool'!$G$26=1),EXP(AU110), IF(AND('Interactive Tool'!$G$29=TRUE,'Interactive Tool'!$G$26=2),EXP(AU110)/(1 + EXP(AU110)), "error"))) -> 53.53164169
AS111: 0.82 | AU111: 3.967459244 | AV111: =IF('Interactive Tool'!$G$29=FALSE,AU111,IF(AND('Interactive Tool'!$G$29=TRUE,'Interactive Tool'!$G$26=1),EXP(AU111), IF(AND('Interactive Tool'!$G$29=TRUE,'Interactive Tool'!$G$26=2),EXP(AU111)/(1 + EXP(AU111)), "error"))) -> 52.85008092
AS112: 0.83 | AU112: 3.954645575 | AV112: =IF('Interactive Tool'!$G$29=FALSE,AU112,IF(AND('Interactive Tool'!$G$29=TRUE,'Interactive Tool'!$G$26=1),EXP(AU112), IF(AND('Interactive Tool'!$G$29=TRUE,'Interactive Tool'!$G$26=2),EXP(AU112)/(1 + EXP(AU112)), "error"))) -> 52.17719774
AS113: 0.84 | AU113: 3.941831906 | AV113: =IF('Interactive Tool'!$G$29=FALSE,AU113,IF(AND('Interactive Tool'!$G$29=TRUE,'Interactive Tool'!$G$26=1),EXP(AU113), IF(AND('Interactive Tool'!$G$29=TRUE,'Interactive Tool'!$G$26=2),EXP(AU113)/(1 + EXP(AU113)), "error"))) -> 51.51288165
AS114: 0.85 | AU114: 3.929018237 | AV114: =IF('Interactive Tool'!$G$29=FALSE,AU114,IF(AND('Interactive Tool'!$G$29=TRUE,'Interactive Tool'!$G$26=1),EXP(AU114), IF(AND('Interactive Tool'!$G$29=TRUE,'Interactive Tool'!$G$26=2),EXP(AU114)/(1 + EXP(AU114)), "error"))) -> 50.85702359
AS115: 0.86 | AU115: 3.916204568 | AV115: =IF('Interactive Tool'!$G$29=FALSE,AU115,IF(AND('Interactive Tool'!$G$29=TRUE,'Interactive Tool'!$G$26=1),EXP(AU115), IF(AND('Interactive Tool'!$G$29=TRUE,'Interactive Tool'!$G$26=2),EXP(AU115)/(1 + EXP(AU115)), "error"))) -> 50.20951586
AS116: 0.87 | AU116: 3.903390899 | AV116: =IF('Interactive Tool'!$G$29=FALSE,AU116,IF(AND('Interactive Tool'!$G$29=TRUE,'Interactive Tool'!$G$26=1),EXP(AU116), IF(AND('Interactive Tool'!$G$29=TRUE,'Interactive Tool'!$G$26=2),EXP(AU116)/(1 + EXP(AU116)), "error"))) -> 49.57025215
AS117: 0.88 | AU117: 3.89057723 | AV117: =IF('Interactive Tool'!$G$29=FALSE,AU117,IF(AND('Interactive Tool'!$G$29=TRUE,'Interactive Tool'!$G$26=1),EXP(AU117), IF(AND('Interactive Tool'!$G$29=TRUE,'Interactive Tool'!$G$26=2),EXP(AU117)/(1 + EXP(AU117)), "error"))) -> 48.93912749
AS118: 0.89 | AU118: 3.877763561 | AV118: =IF('Interactive Tool'!$G$29=FALSE,AU118,IF(AND('Interactive Tool'!$G$29=TRUE,'Interactive Tool'!$G$26=1),EXP(AU118), IF(AND('Interactive Tool'!$G$29=TRUE,'Interactive Tool'!$G$26=2),EXP(AU118)/(1 + EXP(AU118)), "error"))) -> 48.31603827
AS119: 0.9 | AU119: 3.864949892 | AV119: =IF('Interactive Tool'!$G$29=FALSE,AU119,IF(AND('Interactive Tool'!$G$29=TRUE,'Interactive Tool'!$G$26=1),EXP(AU119), IF(AND('Interactive Tool'!$G$29=TRUE,'Interactive Tool'!$G$26=2),EXP(AU119)/(1 + EXP(AU119)), "error"))) -> 47.70088217
AS120: 0.91 | AU120: 3.852136223 | AV120: =IF('Interactive Tool'!$G$29=FALSE,AU120,IF(AND('Interactive Tool'!$G$29=TRUE,'Interactive Tool'!$G$26=1),EXP(AU120), IF(AND('Interactive Tool'!$G$29=TRUE,'Interactive Tool'!$G$26=2),EXP(AU120)/(1 + EXP(AU120)), "error"))) -> 47.09355819
AS121: 0.92 | AU121: 3.839322554 | AV121: =IF('Interactive Tool'!$G$29=FALSE,AU121,IF(AND('Interactive Tool'!$G$29=TRUE,'Interactive Tool'!$G$26=1),EXP(AU121), IF(AND('Interactive Tool'!$G$29=TRUE,'Interactive Tool'!$G$26=2),EXP(AU121)/(1 + EXP(AU121)), "error"))) -> 46.49396661
AS122: 0.93 | AU122: 3.826508885 | AV122: =IF('Interactive Tool'!$G$29=FALSE,AU122,IF(AND('Interactive Tool'!$G$29=TRUE,'Interactive Tool'!$G$26=1),EXP(AU122), IF(AND('Interactive Tool'!$G$29=TRUE,'Interactive Tool'!$G$26=2),EXP(AU122)/(1 + EXP(AU122)), "error"))) -> 45.90200899
AS123: 0.94 | AU123: 3.813695216 | AV123: =IF('Interactive Tool'!$G$29=FALSE,AU123,IF(AND('Interactive Tool'!$G$29=TRUE,'Interactive Tool'!$G$26=1),EXP(AU123), IF(AND('Interactive Tool'!$G$29=TRUE,'Interactive Tool'!$G$26=2),EXP(AU123)/(1 + EXP(AU123)), "error"))) -> 45.31758812
AS124: 0.95 | AU124: 3.800881547 | AV124: =IF('Interactive Tool'!$G$29=FALSE,AU124,IF(AND('Interactive Tool'!$G$29=TRUE,'Interactive Tool'!$G$26=1),EXP(AU124), IF(AND('Interactive Tool'!$G$29=TRUE,'Interactive Tool'!$G$26=2),EXP(AU124)/(1 + EXP(AU124)), "error"))) -> 44.74060806
AS125: 0.96 | AU125: 3.788067878 | AV125: =IF('Interactive Tool'!$G$29=FALSE,AU125,IF(AND('Interactive Tool'!$G$29=TRUE,'Interactive Tool'!$G$26=1),EXP(AU125), IF(AND('Interactive Tool'!$G$29=TRUE,'Interactive Tool'!$G$26=2),EXP(AU125)/(1 + EXP(AU125)), "error"))) -> 44.17097407
AS126: 0.97 | AU126: 3.775254209 | AV126: =IF('Interactive Tool'!$G$29=FALSE,AU126,IF(AND('Interactive Tool'!$G$29=TRUE,'Interactive Tool'!$G$26=1),EXP(AU126), IF(AND('Interactive Tool'!$G$29=TRUE,'Interactive Tool'!$G$26=2),EXP(AU126)/(1 + EXP(AU126)), "error"))) -> 43.60859261
AS127: 0.98 | AU127: 3.76244054 | AV127: =IF('Interactive Tool'!$G$29=FALSE,AU127,IF(AND('Interactive Tool'!$G$29=TRUE,'Interactive Tool'!$G$26=1),EXP(AU127), IF(AND('Interactive Tool'!$G$29=TRUE,'Interactive Tool'!$G$26=2),EXP(AU127)/(1 + EXP(AU127)), "error"))) -> 43.05337134
AS128: 0.99 | AU128: 3.749626871 | AV128: =IF('Interactive Tool'!$G$29=FALSE,AU128,IF(AND('Interactive Tool'!$G$29=TRUE,'Interactive Tool'!$G$26=1),EXP(AU128), IF(AND('Interactive Tool'!$G$29=TRUE,'Interactive Tool'!$G$26=2),EXP(AU128)/(1 + EXP(AU128)), "error"))) -> 42.50521912
AS129: 1 | AT129: =AT24+AT25 -> 41.96404592 | AU129: =IF('Interactive Tool'!$G$29=FALSE,AT129,IF(AND('Interactive Tool'!$G$29=TRUE,'Interactive Tool'!$G$26=1),LN(AT129),IF(AND('Interactive Tool'!$G$29=TRUE,'Interactive Tool'!$G$26=2),LN(AT129/(1-AT129)),"error"))) -> 3.736813202 | AV129: =IF('Interactive Tool'!$G$29=FALSE,AU129,IF(AND('Interactive Tool'!$G$29=TRUE,'Interactive Tool'!$G$26=1),EXP(AU129), IF(AND('Interactive Tool'!$G$29=TRUE,'Interactive Tool'!$G$26=2),EXP(AU129)/(1 + EXP(AU129)), "error"))) -> 41.96404592
AU131: Transformed SII value
AU132: =AU129-AU29 -> -1.281366896
